[Event "*** Titled Tuesday Blitz"]
[Site "Chess.com"]
[Date "2020.10.27"]
[Round "7"]
[White "RobPeresian"]
[Black "davidkalashian"]
[Result "1-0"]
[WhiteElo "2442"]
[BlackElo "2560"]
[TimeControl "180+1"]
[EndTime "11:19:38 PDT"]
[Termination "RobPeresian won by resignation"]

1. Nf3 {[%clk 0:03:00.9]} 1... Nf6 {[%clk 0:02:58.2]} 2. c4 {[%clk 0:02:59.3]}
2... e6 {[%clk 0:02:58.3]} 3. Nc3 {[%clk 0:02:58.8]} 3... Bb4 {[%clk 0:02:57.4]}
4. g4 {[%clk 0:02:58]} 4... d5 {[%clk 0:02:56]} 5. e3 {[%clk 0:02:53.2]} 5...
O-O {[%clk 0:02:52.7]} 6. Qc2 {[%clk 0:02:52.3]} 6... c5 {[%clk 0:02:50.8]} 7.
Rg1 {[%clk 0:02:48.4]} 7... d4 {[%clk 0:02:48.1]} 8. Ne4 {[%clk 0:02:44.5]} 8...
Nxe4 {[%clk 0:02:41.6]} 9. Qxe4 {[%clk 0:02:44.3]} 9... Nd7 {[%clk 0:02:34.8]}
10. g5 {[%clk 0:02:34.7]} 10... Re8 {[%clk 0:02:19.1]} 11. Bd3 {[%clk 0:02:28]}
11... Nf8 {[%clk 0:02:18.5]} 12. a3 {[%clk 0:02:17.9]} 12... Ba5 {[%clk
0:02:17.4]} 13. b4 {[%clk 0:02:18.1]} 13... cxb4 {[%clk 0:02:15.4]} 14. axb4
{[%clk 0:02:18.1]} 14... Bxb4 {[%clk 0:02:16.3]} 15. Bb2 {[%clk 0:02:18.4]}
15... e5 {[%clk 0:02:08.8]} 16. Nxe5 {[%clk 0:02:05]} 16... Ng6 {[%clk
0:02:03.2]} 17. Bxd4 {[%clk 0:01:39.4]} 17... Nxe5 {[%clk 0:01:46.8]} 18. Qxh7+
{[%clk 0:01:34.3]} 18... Kf8 {[%clk 0:01:45.6]} 19. Bxe5 {[%clk 0:01:34.6]}
19... Rxe5 {[%clk 0:01:43.5]} 20. Ke2 {[%clk 0:01:32.8]} 20... Qd6 {[%clk
0:01:15.8]} 21. f4 {[%clk 0:01:22.3]} 21... Bf5 {[%clk 0:01:07.4]} 22. Bxf5
{[%clk 0:01:13.2]} 22... Qxd2+ {[%clk 0:01:02.5]} 23. Kf3 {[%clk 0:01:13.5]}
23... Rxe3+ {[%clk 0:00:55.7]} 24. Kg4 {[%clk 0:01:13.4]} 24... Qe2+ {[%clk
0:00:53.2]} 25. Kh4 {[%clk 0:01:09.1]} 25... Qxh2+ {[%clk 0:00:49.8]} 26. Kg4
{[%clk 0:01:09.3]} 26... Qxh7 {[%clk 0:00:32.1]} 27. Bxh7 {[%clk 0:01:09.3]}
27... g6 {[%clk 0:00:33]} 28. f5 {[%clk 0:01:01.3]} 28... Kg7 {[%clk 0:00:28.6]}
29. Rh1 {[%clk 0:00:57.1]} 29... Bd6 {[%clk 0:00:17.1]} 30. f6+ {[%clk
0:00:44.5]} 30... Kf8 {[%clk 0:00:17.5]} 31. Bxg6 {[%clk 0:00:38.1]} 31... Rg3+
{[%clk 0:00:16.3]} 32. Kf5 {[%clk 0:00:37.7]} 32... Rf3+ {[%clk 0:00:15.2]} 33.
Kg4 {[%clk 0:00:33.4]} 33... Rg3+ {[%clk 0:00:09]} 34. Kh5 {[%clk 0:00:21.2]}
34... Bf4 {[%clk 0:00:05.8]} 35. Rag1 {[%clk 0:00:17.8]} 35... Rxg1 {[%clk
0:00:05.1]} 36. Rxg1 {[%clk 0:00:18.7]} 36... fxg6+ {[%clk 0:00:04.7]} 37. Kxg6
{[%clk 0:00:19.6]} 37... Rc8 {[%clk 0:00:02.9]} 38. Rh1 {[%clk 0:00:17.6]} 38...
Ke8 {[%clk 0:00:03.1]} 39. Rh8+ {[%clk 0:00:15.3]} 39... Kd7 {[%clk 0:00:04]}
40. Rxc8 {[%clk 0:00:15.1]} 40... Kxc8 {[%clk 0:00:04.9]} 41. f7 {[%clk
0:00:12.4]} 41... Bd6 {[%clk 0:00:04.8]} 42. Kh7 {[%clk 0:00:12.4]} 42... a5
{[%clk 0:00:05.5]} 43. g6 {[%clk 0:00:12.5]} 43... a4 {[%clk 0:00:06.3]} 44. g7
{[%clk 0:00:13]} 44... a3 {[%clk 0:00:07.2]} 45. g8=Q+ {[%clk 0:00:12.8]} 45...
Kc7 {[%clk 0:00:08.1]} 46. f8=Q {[%clk 0:00:13.2]} 46... Kc6 {[%clk 0:00:08.3]}
47. Qxd6+ {[%clk 0:00:12.5]} 47... Kxd6 {[%clk 0:00:07.7]} 48. Qf8+ {[%clk
0:00:13.1]} 1-0

[Event "*** Titled Tuesday Blitz"]
[Site "Chess.com"]
[Date "2020.10.27"]
[Round "7"]
[White "wannabe2700"]
[Black "Guenplen"]
[Result "0-1"]
[WhiteElo "2740"]
[BlackElo "2847"]
[TimeControl "180+1"]
[EndTime "11:19:41 PDT"]
[Termination "Guenplen won on time"]

1. d4 {[%clk 0:03:00.9]} 1... d5 {[%clk 0:02:58.5]} 2. c4 {[%clk 0:02:57.1]}
2... e6 {[%clk 0:02:58.5]} 3. Nc3 {[%clk 0:02:50.8]} 3... a6 {[%clk 0:02:58.4]}
4. cxd5 {[%clk 0:02:50.2]} 4... exd5 {[%clk 0:02:59.3]} 5. Nf3 {[%clk
0:02:47.8]} 5... Nf6 {[%clk 0:02:58.3]} 6. Bf4 {[%clk 0:02:47.4]} 6... c5 {[%clk
0:02:57.4]} 7. dxc5 {[%clk 0:02:37.6]} 7... Bxc5 {[%clk 0:02:56.2]} 8. e3 {[%clk
0:02:27.7]} 8... Nc6 {[%clk 0:02:55.7]} 9. Be2 {[%clk 0:02:26.4]} 9... O-O
{[%clk 0:02:55.4]} 10. O-O {[%clk 0:02:26]} 10... d4 {[%clk 0:02:53.7]} 11. exd4
{[%clk 0:01:54.3]} 11... Nxd4 {[%clk 0:02:54.6]} 12. Nxd4 {[%clk 0:01:52.7]}
12... Qxd4 {[%clk 0:02:54.5]} 13. Qxd4 {[%clk 0:01:40.1]} 13... Bxd4 {[%clk
0:02:55.4]} 14. Rac1 {[%clk 0:01:40.7]} 14... Bg4 {[%clk 0:02:42.1]} 15. Bxg4
{[%clk 0:01:25.3]} 15... Nxg4 {[%clk 0:02:43]} 16. h3 {[%clk 0:01:24]} 16... Nf6
{[%clk 0:02:37.6]} 17. Rfd1 {[%clk 0:01:23.2]} 17... Bxc3 {[%clk 0:02:25.8]} 18.
Rxc3 {[%clk 0:01:22.4]} 18... Rac8 {[%clk 0:02:25.9]} 19. Be5 {[%clk 0:01:10.6]}
19... Rxc3 {[%clk 0:02:11.7]} 20. Bxc3 {[%clk 0:01:11.5]} 20... Ne4 {[%clk
0:02:08.9]} 21. Ba5 {[%clk 0:00:58.2]} 21... f6 {[%clk 0:01:48.7]} 22. f3 {[%clk
0:00:55.2]} 22... Ng5 {[%clk 0:01:29.4]} 23. Bb4 {[%clk 0:00:48.6]} 23... Rc8
{[%clk 0:01:28]} 24. Rd7 {[%clk 0:00:47.6]} 24... Rc1+ {[%clk 0:01:24.5]} 25.
Kh2 {[%clk 0:00:45.8]} 25... Rc2 {[%clk 0:01:23.9]} 26. Bc3 {[%clk 0:00:09]}
26... Nxf3+ {[%clk 0:01:07.9]} 27. Kg3 {[%clk 0:00:09.3]} 27... Ng5 {[%clk
0:01:06.1]} 28. Rxb7 {[%clk 0:00:02.4]} 28... Ne4+ {[%clk 0:01:03.9]} 29. Kh2
{[%clk 0:00:02.5]} 29... Nxc3 {[%clk 0:01:04.5]} 30. bxc3 {[%clk 0:00:03.4]}
30... Rxc3 {[%clk 0:01:02.2]} 31. Rb8+ {[%clk 0:00:02.7]} 31... Kf7 {[%clk
0:01:01.8]} 32. Rb7+ {[%clk 0:00:03.6]} 32... Kg6 {[%clk 0:01:02.1]} 33. Rb6
{[%clk 0:00:03.7]} 33... Ra3 {[%clk 0:01:01.8]} 34. Rb2 {[%clk 0:00:03.6]} 34...
h5 {[%clk 0:01:02]} 35. Kg1 {[%clk 0:00:04.4]} 35... h4 {[%clk 0:01:02.1]} 36.
Kf2 {[%clk 0:00:05.3]} 36... Kf5 {[%clk 0:01:01.5]} 37. Ke2 {[%clk 0:00:05.8]}
37... g5 {[%clk 0:01:01.3]} 38. Kf2 {[%clk 0:00:05.6]} 38... a5 {[%clk
0:01:00.3]} 39. Ke2 {[%clk 0:00:05.7]} 39... Kf4 {[%clk 0:00:59.9]} 40. Kf2
{[%clk 0:00:06.1]} 40... f5 {[%clk 0:01:00.3]} 41. Re2 {[%clk 0:00:06.2]} 41...
Rc3 {[%clk 0:00:56.2]} 42. Rb2 {[%clk 0:00:05.5]} 42... Rc4 {[%clk 0:00:56.2]}
43. Kg1 {[%clk 0:00:03.3]} 43... a4 {[%clk 0:00:51.9]} 44. a3 {[%clk 0:00:03.6]}
44... g4 {[%clk 0:00:42.9]} 45. hxg4 {[%clk 0:00:02.8]} 45... fxg4 {[%clk
0:00:43.8]} 46. Kh2 {[%clk 0:00:02.2]} 46... Ke3 {[%clk 0:00:41.2]} 47. Rb5
{[%clk 0:00:01.2]} 47... Kd3 {[%clk 0:00:39.3]} 48. Rh5 {[%clk 0:00:01.4]} 48...
Kc3 {[%clk 0:00:30.7]} 49. Rb5 {[%clk 0:00:01.5]} 49... Kc2 {[%clk 0:00:29.6]}
50. Rb7 {[%clk 0:00:01.4]} 50... Rd4 {[%clk 0:00:25.9]} 51. Rb8 {[%clk
0:00:01.7]} 51... Rd2 {[%clk 0:00:17.6]} 0-1

[Event "*** Titled Tuesday Blitz"]
[Site "Chess.com"]
[Date "2020.10.27"]
[Round "7"]
[White "Mazetovic"]
[Black "Andreikka"]
[Result "0-1"]
[WhiteElo "2757"]
[BlackElo "2916"]
[TimeControl "180+1"]
[EndTime "11:19:42 PDT"]
[Termination "Andreikka won by resignation"]

1. e4 {[%clk 0:03:00.9]} 1... e5 {[%clk 0:02:55]} 2. Nf3 {[%clk 0:03:00.3]} 2...
Nc6 {[%clk 0:02:54.7]} 3. Bb5 {[%clk 0:02:58.4]} 3... d6 {[%clk 0:02:55.1]} 4.
d4 {[%clk 0:02:55.6]} 4... Bd7 {[%clk 0:02:45.6]} 5. Nc3 {[%clk 0:02:44.7]} 5...
Nge7 {[%clk 0:02:44.9]} 6. h4 {[%clk 0:02:39.4]} 6... h5 {[%clk 0:02:36.2]} 7.
d5 {[%clk 0:02:32.2]} 7... Nb8 {[%clk 0:02:35.4]} 8. Bxd7+ {[%clk 0:02:32.3]}
8... Nxd7 {[%clk 0:02:35.3]} 9. Ng5 {[%clk 0:02:32.4]} 9... g6 {[%clk 0:02:35]}
10. Ne2 {[%clk 0:02:29.9]} 10... Bg7 {[%clk 0:02:30.7]} 11. c4 {[%clk
0:02:29.9]} 11... Ng8 {[%clk 0:02:24.9]} 12. f3 {[%clk 0:02:28.2]} 12... a5
{[%clk 0:02:23.3]} 13. Be3 {[%clk 0:02:25.3]} 13... Ngf6 {[%clk 0:02:23]} 14.
Qd2 {[%clk 0:02:23.6]} 14... Nh7 {[%clk 0:02:20.8]} 15. Nxh7 {[%clk 0:02:17.2]}
15... Rxh7 {[%clk 0:02:21.7]} 16. O-O-O {[%clk 0:02:15.7]} 16... Qe7 {[%clk
0:02:17.2]} 17. Nc3 {[%clk 0:02:11.8]} 17... b6 {[%clk 0:02:17.3]} 18. Nb5
{[%clk 0:02:05.2]} 18... Kd8 {[%clk 0:02:17.8]} 19. g3 {[%clk 0:01:59.7]} 19...
Kc8 {[%clk 0:02:15.5]} 20. b3 {[%clk 0:01:57.5]} 20... Qf8 {[%clk 0:02:12.6]}
21. Kc2 {[%clk 0:01:21.1]} 21... Kb7 {[%clk 0:02:10.1]} 22. a3 {[%clk
0:01:19.6]} 22... Bh6 {[%clk 0:02:02.6]} 23. Ra1 {[%clk 0:01:06.5]} 23... Bxe3
{[%clk 0:02:01.1]} 24. Qxe3 {[%clk 0:01:06.4]} 24... f5 {[%clk 0:01:58.1]} 25.
Rhf1 {[%clk 0:00:43.2]} 25... Rf7 {[%clk 0:01:56]} 26. Qe2 {[%clk 0:00:41.2]}
26... Qe7 {[%clk 0:01:44.9]} 27. Nc3 {[%clk 0:00:40]} 27... f4 {[%clk
0:01:41.2]} 28. gxf4 {[%clk 0:00:28.8]} 28... Rxf4 {[%clk 0:01:40.9]} 29. b4
{[%clk 0:00:27.1]} 29... Rxh4 {[%clk 0:01:38.6]} 30. Rab1 {[%clk 0:00:18.1]}
30... Rf4 {[%clk 0:01:20]} 31. Rh1 {[%clk 0:00:07.5]} 31... Rf6 {[%clk
0:01:17.9]} 32. Rbg1 {[%clk 0:00:06]} 32... Qf8 {[%clk 0:01:15.3]} 33. Rg3
{[%clk 0:00:05.5]} 33... Qh6 {[%clk 0:01:15.6]} 34. Kb2 {[%clk 0:00:05.5]} 34...
Qf4 {[%clk 0:01:08.1]} 35. Rhg1 {[%clk 0:00:05.7]} 35... h4 {[%clk 0:00:53]} 36.
Rxg6 {[%clk 0:00:05.1]} 36... axb4 {[%clk 0:00:51.5]} 37. axb4 {[%clk
0:00:04.7]} 37... Qxf3 {[%clk 0:00:51.2]} 38. Qxf3 {[%clk 0:00:05]} 38... Rxf3
{[%clk 0:00:52.1]} 39. Rg7 {[%clk 0:00:04.7]} 39... Nf6 {[%clk 0:00:51.6]} 40.
Rf7 {[%clk 0:00:04]} 40... Rf2+ {[%clk 0:00:50.7]} 41. Kb3 {[%clk 0:00:03.9]}
41... Nxe4 {[%clk 0:00:51.3]} 42. Rxf2 {[%clk 0:00:02.7]} 42... Nxf2 {[%clk
0:00:52.2]} 43. Rg7 {[%clk 0:00:03.2]} 43... h3 {[%clk 0:00:39.7]} 44. Rh7
{[%clk 0:00:03.4]} 44... Rg8 {[%clk 0:00:23.5]} 45. Nb5 {[%clk 0:00:03.7]} 45...
Rg2 {[%clk 0:00:18.7]} 46. Ka4 {[%clk 0:00:03.8]} 46... h2 {[%clk 0:00:17.7]}
47. Nxd6+ {[%clk 0:00:03.9]} 47... Kb8 {[%clk 0:00:16.6]} 48. Rh8+ {[%clk
0:00:03.4]} 48... Ka7 {[%clk 0:00:17.3]} 49. Nb5+ {[%clk 0:00:03.7]} 49... Kb7
{[%clk 0:00:17.9]} 50. d6 {[%clk 0:00:04.2]} 50... h1=Q {[%clk 0:00:17.2]} 51.
Rxh1 {[%clk 0:00:01.8]} 51... Nxh1 {[%clk 0:00:18.1]} 52. d7 {[%clk 0:00:02.3]}
52... Ra2+ {[%clk 0:00:18.6]} 53. Kb3 {[%clk 0:00:01.7]} 53... Rd2 {[%clk
0:00:19.5]} 54. c5 {[%clk 0:00:02.6]} 54... Rxd7 {[%clk 0:00:19.4]} 0-1

[Event "*** Titled Tuesday Blitz"]
[Site "Chess.com"]
[Date "2020.10.27"]
[Round "7"]
[White "vanyakuba"]
[Black "DenisQ"]
[Result "1-0"]
[WhiteElo "2520"]
[BlackElo "2634"]
[TimeControl "180+1"]
[EndTime "11:19:45 PDT"]
[Termination "vanyakuba won by resignation"]

1. e4 {[%clk 0:03:00.9]} 1... c6 {[%clk 0:02:59.4]} 2. d4 {[%clk 0:02:59.6]}
2... d5 {[%clk 0:03:00.3]} 3. exd5 {[%clk 0:02:59.7]} 3... cxd5 {[%clk 0:03:00]}
4. c4 {[%clk 0:03:00.3]} 4... Nf6 {[%clk 0:02:58]} 5. Nc3 {[%clk 0:03:00.2]}
5... Nc6 {[%clk 0:02:57.1]} 6. Bg5 {[%clk 0:03:00]} 6... e6 {[%clk 0:02:56.2]}
7. Nf3 {[%clk 0:02:58.2]} 7... Be7 {[%clk 0:02:55.8]} 8. Bd3 {[%clk 0:02:55.8]}
8... O-O {[%clk 0:02:53.4]} 9. O-O {[%clk 0:02:54.6]} 9... dxc4 {[%clk
0:02:52.2]} 10. Bxc4 {[%clk 0:02:54.3]} 10... b6 {[%clk 0:02:52.4]} 11. a3
{[%clk 0:02:51]} 11... Bb7 {[%clk 0:02:52.1]} 12. Re1 {[%clk 0:02:20.8]} 12...
Rc8 {[%clk 0:02:51.4]} 13. Qd3 {[%clk 0:02:13.3]} 13... Qd6 {[%clk 0:02:40.4]}
14. Rad1 {[%clk 0:02:11.3]} 14... Rfd8 {[%clk 0:02:39.1]} 15. Ba2 {[%clk
0:02:00.5]} 15... Qc7 {[%clk 0:02:10.6]} 16. Bb1 {[%clk 0:01:48.6]} 16... g6
{[%clk 0:02:10.2]} 17. h4 {[%clk 0:01:29.2]} 17... Nh5 {[%clk 0:02:04.5]} 18.
Bh6 {[%clk 0:01:00]} 18... Bf6 {[%clk 0:02:00.1]} 19. Qe3 {[%clk 0:00:54]} 19...
Ne7 {[%clk 0:01:56.4]} 20. Ne5 {[%clk 0:00:46]} 20... Nf5 {[%clk 0:01:47.8]} 21.
Bxf5 {[%clk 0:00:45.3]} 21... exf5 {[%clk 0:01:47.9]} 22. Nb5 {[%clk 0:00:30.2]}
22... Qe7 {[%clk 0:01:32.8]} 23. Nxa7 {[%clk 0:00:22.6]} 23... Bxh4 {[%clk
0:00:58]} 24. Nxc8 {[%clk 0:00:17.7]} 24... Rxc8 {[%clk 0:00:58.9]} 25. Nf3
{[%clk 0:00:12.9]} 25... Qxe3 {[%clk 0:00:52.2]} 26. Rxe3 {[%clk 0:00:13.8]}
26... Bf6 {[%clk 0:00:52.2]} 27. Ne5 {[%clk 0:00:07.1]} 27... Bd5 {[%clk
0:00:44.1]} 28. Nd7 {[%clk 0:00:05.9]} 28... Rd8 {[%clk 0:00:15.2]} 29. Nxf6+
{[%clk 0:00:05.7]} 29... Nxf6 {[%clk 0:00:16.1]} 30. Bg5 {[%clk 0:00:06.2]}
30... Kg7 {[%clk 0:00:16]} 31. Re5 {[%clk 0:00:06.5]} 31... Rd7 {[%clk
0:00:15.7]} 32. Bxf6+ {[%clk 0:00:04.9]} 32... Kxf6 {[%clk 0:00:16.6]} 33. f3
{[%clk 0:00:05.5]} 33... h5 {[%clk 0:00:15.5]} 34. Rc1 {[%clk 0:00:05.2]} 34...
Be6 {[%clk 0:00:15.4]} 35. Rb5 {[%clk 0:00:04.3]} 35... Rxd4 {[%clk 0:00:13.7]}
36. Rxb6 {[%clk 0:00:04.7]} 36... h4 {[%clk 0:00:14.3]} 37. Rb4 {[%clk
0:00:04.1]} 37... Rd3 {[%clk 0:00:13.7]} 38. a4 {[%clk 0:00:04.2]} 38... h3
{[%clk 0:00:13.3]} 39. gxh3 {[%clk 0:00:04.5]} 39... Rxf3 {[%clk 0:00:12.8]} 40.
a5 {[%clk 0:00:04.7]} 40... Rxh3 {[%clk 0:00:12.2]} 41. a6 {[%clk 0:00:04.4]}
41... Bd5 {[%clk 0:00:12.5]} 42. Kf2 {[%clk 0:00:03.2]} 42... Rh2+ {[%clk
0:00:11.6]} 43. Ke3 {[%clk 0:00:03.4]} 43... Ke5 {[%clk 0:00:11.9]} 44. Rb5
{[%clk 0:00:02.8]} 44... f4+ {[%clk 0:00:11.7]} 45. Kd3 {[%clk 0:00:02.8]} 45...
Rh3+ {[%clk 0:00:11]} 46. Kc2 {[%clk 0:00:02.7]} 46... Rh8 {[%clk 0:00:05.8]}
47. Rd1 {[%clk 0:00:02.8]} 47... Ra8 {[%clk 0:00:06]} 48. Rdxd5+ {[%clk
0:00:02.9]} 48... Ke4 {[%clk 0:00:06.1]} 49. Rdc5 {[%clk 0:00:03.2]} 1-0

[Event "*** Titled Tuesday Blitz"]
[Site "Chess.com"]
[Date "2020.10.27"]
[Round "7"]
[White "Yoshikrov"]
[Black "Inga83"]
[Result "0-1"]
[WhiteElo "2141"]
[BlackElo "2397"]
[TimeControl "180+1"]
[EndTime "11:19:48 PDT"]
[Termination "Inga83 won by resignation"]

1. e4 {[%clk 0:03:00.9]} 1... c6 {[%clk 0:02:59.9]} 2. d4 {[%clk 0:02:54.1]}
2... d6 {[%clk 0:03:00]} 3. Nc3 {[%clk 0:02:49.1]} 3... Qc7 {[%clk 0:02:59.3]}
4. Nf3 {[%clk 0:02:39.9]} 4... e5 {[%clk 0:02:58.8]} 5. h3 {[%clk 0:02:20.7]}
5... Nf6 {[%clk 0:02:57.6]} 6. Bc4 {[%clk 0:02:18.9]} 6... Be7 {[%clk
0:02:56.2]} 7. O-O {[%clk 0:02:18.5]} 7... O-O {[%clk 0:02:55.2]} 8. Bg5 {[%clk
0:02:16.9]} 8... b5 {[%clk 0:02:54.7]} 9. Bb3 {[%clk 0:02:13.4]} 9... b4 {[%clk
0:02:42.3]} 10. Bxf6 {[%clk 0:02:11.1]} 10... Bxf6 {[%clk 0:02:40]} 11. Ne2
{[%clk 0:02:09.9]} 11... exd4 {[%clk 0:02:33.2]} 12. Nexd4 {[%clk 0:02:09.5]}
12... Ba6 {[%clk 0:02:31.4]} 13. Re1 {[%clk 0:02:03.8]} 13... c5 {[%clk
0:02:28.9]} 14. Nf5 {[%clk 0:02:03.4]} 14... c4 {[%clk 0:02:28.8]} 15. Ba4
{[%clk 0:02:02.2]} 15... Rd8 {[%clk 0:02:28.7]} 16. Rb1 {[%clk 0:01:27.4]} 16...
Bb7 {[%clk 0:02:14.7]} 17. Qe2 {[%clk 0:01:07]} 17... Nd7 {[%clk 0:02:00.4]} 18.
Bxd7 {[%clk 0:00:51.3]} 18... Rxd7 {[%clk 0:01:50.6]} 19. e5 {[%clk 0:00:42.2]}
19... dxe5 {[%clk 0:01:37.7]} 20. Nxe5 {[%clk 0:00:42.2]} 20... Bxe5 {[%clk
0:01:29.2]} 21. Qxe5 {[%clk 0:00:41.5]} 21... Qxe5 {[%clk 0:01:26.4]} 22. Rxe5
{[%clk 0:00:41.5]} 22... g6 {[%clk 0:01:26.6]} 23. Ne3 {[%clk 0:00:35.2]} 23...
Ba6 {[%clk 0:01:13]} 24. a3 {[%clk 0:00:33]} 24... Rb8 {[%clk 0:01:09.9]} 25.
Ra5 {[%clk 0:00:32.1]} 25... Rd6 {[%clk 0:01:07.5]} 26. axb4 {[%clk 0:00:27.2]}
26... Rxb4 {[%clk 0:01:06.3]} 27. Rba1 {[%clk 0:00:25.2]} 27... Bb5 {[%clk
0:00:59.7]} 28. Rxa7 {[%clk 0:00:23.6]} 28... Rxb2 {[%clk 0:00:59]} 29. Re7
{[%clk 0:00:21]} 29... Rd7 {[%clk 0:00:44.8]} 30. Ra7 {[%clk 0:00:19]} 30...
Rxe7 {[%clk 0:00:42.2]} 31. Rxe7 {[%clk 0:00:18.6]} 31... Ba6 {[%clk 0:00:40.3]}
32. Rc7 {[%clk 0:00:18.5]} 32... h5 {[%clk 0:00:36.9]} 33. Kh2 {[%clk
0:00:15.1]} 33... Kg7 {[%clk 0:00:34.3]} 34. g4 {[%clk 0:00:14.3]} 34... hxg4
{[%clk 0:00:33.4]} 35. hxg4 {[%clk 0:00:14.4]} 35... Ra2 {[%clk 0:00:32.2]} 36.
Kg3 {[%clk 0:00:14]} 36... Ra3 {[%clk 0:00:31.4]} 37. Rc6 {[%clk 0:00:12.6]}
37... Bb5 {[%clk 0:00:30.7]} 38. Rc5 {[%clk 0:00:12.8]} 38... Ba6 {[%clk
0:00:29.7]} 39. Rc6 {[%clk 0:00:13.2]} 39... Bb7 {[%clk 0:00:27.4]} 40. Rxc4
{[%clk 0:00:12]} 40... Ra1 {[%clk 0:00:26.3]} 41. Rc7 {[%clk 0:00:12]} 41... Be4
{[%clk 0:00:25.8]} 42. Kf4 {[%clk 0:00:11.9]} 42... Ba8 {[%clk 0:00:24.3]} 43.
f3 {[%clk 0:00:11.4]} 43... Re1 {[%clk 0:00:22.3]} 44. g5 {[%clk 0:00:10.8]}
44... Re2 {[%clk 0:00:20.8]} 45. c4 {[%clk 0:00:10.5]} 45... Rf2 {[%clk
0:00:20.7]} 46. Nd5 {[%clk 0:00:10.6]} 46... Rc2 {[%clk 0:00:18.8]} 47. Ke3
{[%clk 0:00:09.9]} 47... Bxd5 {[%clk 0:00:18.2]} 48. Kd3 {[%clk 0:00:07.7]}
48... Rc1 {[%clk 0:00:17.7]} 49. Kd2 {[%clk 0:00:08.1]} 49... Rxc4 {[%clk
0:00:17.5]} 50. Rd7 {[%clk 0:00:08.1]} 50... Bxf3 {[%clk 0:00:17.5]} 51. Ke3
{[%clk 0:00:08]} 51... Bg4 {[%clk 0:00:17.2]} 52. Re7 {[%clk 0:00:07]} 52... Be6
{[%clk 0:00:17]} 53. Ra7 {[%clk 0:00:06.7]} 53... Rc5 {[%clk 0:00:17.2]} 54. Kf4
{[%clk 0:00:06.8]} 54... Rf5+ {[%clk 0:00:17.4]} 0-1

[Event "*** Titled Tuesday Blitz"]
[Site "Chess.com"]
[Date "2020.10.27"]
[Round "7"]
[White "Mikhail_Golubev"]
[Black "ajian"]
[Result "1-0"]
[WhiteElo "2516"]
[BlackElo "2347"]
[TimeControl "180+1"]
[EndTime "11:19:52 PDT"]
[Termination "Mikhail_Golubev won by checkmate"]

1. e4 {[%clk 0:03:00.9]} 1... c5 {[%clk 0:03:00]} 2. Nf3 {[%clk 0:02:59.1]} 2...
Nc6 {[%clk 0:03:00.5]} 3. Nc3 {[%clk 0:02:58.4]} 3... Nf6 {[%clk 0:03:00.5]} 4.
Bb5 {[%clk 0:02:57.4]} 4... Qc7 {[%clk 0:03:00.1]} 5. O-O {[%clk 0:02:54.9]}
5... Nd4 {[%clk 0:02:58.3]} 6. Bd3 {[%clk 0:02:43.6]} 6... d6 {[%clk 0:02:53.7]}
7. Nxd4 {[%clk 0:02:30.1]} 7... cxd4 {[%clk 0:02:51.5]} 8. Nb5 {[%clk
0:02:29.8]} 8... Qb6 {[%clk 0:02:48.8]} 9. c3 {[%clk 0:02:29.6]} 9... dxc3
{[%clk 0:02:47.9]} 10. dxc3 {[%clk 0:02:27.6]} 10... a6 {[%clk 0:02:38.6]} 11.
Be3 {[%clk 0:02:27.4]} 11... Qd8 {[%clk 0:02:36.7]} 12. Nd4 {[%clk 0:02:23]}
12... Ng4 {[%clk 0:02:34.8]} 13. Bg5 {[%clk 0:02:10.7]} 13... Qa5 {[%clk
0:02:27.7]} 14. Qd2 {[%clk 0:01:54.1]} 14... h6 {[%clk 0:02:11.7]} 15. Bh4
{[%clk 0:01:52.4]} 15... g5 {[%clk 0:02:03]} 16. Bg3 {[%clk 0:01:51.8]} 16...
Bg7 {[%clk 0:02:03.4]} 17. Be2 {[%clk 0:01:36.4]} 17... Qb6 {[%clk 0:01:43.7]}
18. Bxg4 {[%clk 0:01:19.1]} 18... Bxg4 {[%clk 0:01:43.3]} 19. f3 {[%clk
0:01:19.7]} 19... Bd7 {[%clk 0:01:40.7]} 20. Bf2 {[%clk 0:01:20.2]} 20... Qc7
{[%clk 0:01:39]} 21. Be3 {[%clk 0:01:19.4]} 21... O-O {[%clk 0:01:33.7]} 22. f4
{[%clk 0:01:19]} 22... e5 {[%clk 0:01:33.4]} 23. fxe5 {[%clk 0:01:12.1]} 23...
dxe5 {[%clk 0:01:30.5]} 24. Nf5 {[%clk 0:01:12.1]} 24... Bxf5 {[%clk 0:01:28.7]}
25. Rxf5 {[%clk 0:01:11.3]} 25... Rad8 {[%clk 0:01:24.4]} 26. Qe2 {[%clk
0:01:00.3]} 26... Qc6 {[%clk 0:01:23.3]} 27. Bf2 {[%clk 0:00:54.2]} 27... Rd7
{[%clk 0:01:21.5]} 28. h4 {[%clk 0:00:42.9]} 28... f6 {[%clk 0:01:16]} 29. Rf1
{[%clk 0:00:40.2]} 29... Rfd8 {[%clk 0:01:14.5]} 30. hxg5 {[%clk 0:00:40.1]}
30... hxg5 {[%clk 0:01:14.4]} 31. Bg3 {[%clk 0:00:33]} 31... Rd2 {[%clk
0:00:59.7]} 32. Qh5 {[%clk 0:00:32.7]} 32... Qxe4 {[%clk 0:00:54]} 33. Qh3
{[%clk 0:00:32.5]} 33... g4 {[%clk 0:00:44.1]} 34. Qh2 {[%clk 0:00:21.5]} 34...
Rd1 {[%clk 0:00:43.3]} 35. Qh5 {[%clk 0:00:21.5]} 35... Qe3+ {[%clk 0:00:23.2]}
36. Kh2 {[%clk 0:00:17.4]} 36... Rxf1 {[%clk 0:00:18.1]} 37. Rxf1 {[%clk
0:00:16.4]} 37... Qe4 {[%clk 0:00:18.3]} 38. Rf5 {[%clk 0:00:12.5]} 38... Qc4
{[%clk 0:00:09.4]} 39. Qg6 {[%clk 0:00:10.6]} 39... Qf7 {[%clk 0:00:08.6]} 40.
Qxg4 {[%clk 0:00:08.6]} 40... Kf8 {[%clk 0:00:06.9]} 41. Bxe5 {[%clk 0:00:08]}
41... Qe6 {[%clk 0:00:04.7]} 42. Bg3 {[%clk 0:00:06.7]} 42... Kf7 {[%clk
0:00:04.6]} 43. Qh5+ {[%clk 0:00:05.8]} 43... Ke7 {[%clk 0:00:04.2]} 44. Qg6
{[%clk 0:00:05.6]} 44... Rh8+ {[%clk 0:00:04.4]} 45. Kg1 {[%clk 0:00:05.5]}
45... Qe3+ {[%clk 0:00:04.5]} 46. Rf2 {[%clk 0:00:02.6]} 46... Qe1+ {[%clk
0:00:04.4]} 47. Rf1 {[%clk 0:00:03.1]} 47... Qe3+ {[%clk 0:00:04.8]} 48. Bf2
{[%clk 0:00:03.3]} 48... Qg5 {[%clk 0:00:05]} 49. Re1+ {[%clk 0:00:03.5]} 49...
Kd7 {[%clk 0:00:03.8]} 50. Qf7+ {[%clk 0:00:02.9]} 50... Kc6 {[%clk 0:00:03.5]}
51. Re6+ {[%clk 0:00:02.8]} 51... Kb5 {[%clk 0:00:03.2]} 52. Qxb7+ {[%clk
0:00:02.7]} 52... Ka5 {[%clk 0:00:02.7]} 53. Qxa6# {[%clk 0:00:02.8]} 1-0